[Event "Irish International Open 2019"]
[Site "Dublin"]
[Date "2019.04.20"]
[Round "5.25"]
[White "Larter, Nick J."]
[Black "Fox, Anthony"]
[Result "1/2-1/2"]
[ECO "C56"]
[WhiteElo "1830"]
[BlackElo "2031"]
[Annotator "NA"]
[PlyCount "150"]
[EventDate "2019.02.28"]
[EventType "swiss"]
[EventCountry "IRL"]
[SourceTitle "playchess.com"]
[Source "ChessBase"]
[SourceQuality "1"]
[TimeControl "5400+30"]

1. e4 {[%emt 0:00:00]} e5 {[%emt 0:00:00]} 2. Bc4 {[%emt 0:00:00]} Nf6 {[%emt 0:00:00]} 3. d4 {[%emt 0:00:00]} exd4 {[%emt 0:00:00]} 4. Nf3 {[%emt 0:00:04]} Nc6 {[%emt 0:01:03]} 5. e5 {[%emt 0:02:09]} d5 {[%emt 0:00:13]} 6. Bb5 {[%emt 0:00:13]} Ne4 {[%emt 0:00:14]} 7. Nxd4 {[%emt 0:00:23]} Bd7 {[%emt 0:00:10]} 8. Bxc6 {[%emt 0:02:13]} bxc6 {[%emt 0:00:08]} 9. O-O {[%emt 0:01:15]} Bc5 {[%emt 0:00:36]} 10. Be3 {[%emt 0:00:12]} Bb6 {[%emt 0:02:04]} 11. f3 {[%emt 0:05:32]} Ng5 {[%emt 0:00:53]} 12. f4 {[%emt 0:00:17]} Ne4 {[%emt 0:00:07]} 13. Nd2 {[%emt 0:02:52]} Nxd2 {[%emt 0:01:47]} 14. Qxd2 {[%emt 0:00:19]} c5 {[%emt 0:00:17]} 15. Nf3 {[%emt 0:07:28]} d4 {[%emt 0:00:24]} 16. Bf2 {[%emt 0:00:42]} Bc6 {[%emt 0:01:51]} 17. Bh4 {[%emt 0:06:06]} Qd7 {[%emt 0:01:01]} 18. e6 {[%emt 0:00:30]} fxe6 {[%emt 0:03:43]} 19. Ne5 {[%emt 0:01:20]} Qd5 {[%emt 0:02:41]} 20. Nxc6 {[%emt 0:09:37]} Qxc6 {[%emt 0:00:25]} 21. f5 {[%emt 0:00:50]} O-O {[%emt 0:04:50]} 22. f6 {[%emt 0:03:01]} Rf7 {[%emt 0:15:05]} 23. Rae1 {[%emt 0:15:46]} c4 {[%emt 0:02:25]} 24. Kh1 {[%emt 0:00:47]} Qd5 {[%emt 0:06:17]} 25. Qe2 {[%emt 0:02:54]} d3 {[%emt 0:05:16]} 26. cxd3 {[%emt 0:01:51]} cxd3 {[%emt 0:00:10]} 27. Qxe6 {[%emt 0:00:58]} Qxe6 {[%emt 0:00:11]} 28. Rxe6 {[%emt 0:00:14]} d2 {[%emt 0:01:59]} 29. Rd1 {[%emt 0:02:24]} Rd8 {[%emt 0:04:17]} 30. Re2 {[%emt 0:06:30]} Ba5 {[%emt 0:07:56]} 31. a3 {[%emt 0:02:39]} c5 {[%emt 0:01:34]} 32. Re5 {[%emt 0:05:07]} gxf6 {[%emt 0:03:14]} 33. Rxc5 {[%emt 0:01:02]} Bb6 {[%emt 0:00:09]} 34. Rc6 {[%emt 0:02:25]} Kg7 {[%emt 0:00:21]} 35. Re6 {[%emt 0:03:27]} Rd3 {[%emt 0:01:19]} 36. g4 {[%emt 0:03:10]} Be3 {[%emt 0:13:05]} 37. Kg2 {[%emt 0:01:16]} f5 {[%emt 0:02:17]} 38. Kf1 {[%emt 0:04:56]} f4 {[%emt 0:01:02]} 39. Ke2 {[%emt 0:00:56]} Rb3 {[%emt 0:00:22]} 40. Bf2 {[%emt 0:01:42]} Bxf2 {[%emt 0:08:50]} 41. Kxf2 {[%emt 0:00:13]} Rd7 {[%emt 0:00:47]} 42. Re4 {[%emt 0:01:50]} Rxb2 {[%emt 0:01:30]} 43. Rxf4 {[%emt 0:00:10]} Rb3 {[%emt 0:01:07]} 44. Rf3 {[%emt 0:01:26]} Rb2 {[%emt 0:01:21]} 45. Ke2 {[%emt 0:01:11]} Rd4 {[%emt 0:01:16]} 46. h3 {[%emt 0:00:40]} Rd7 {[%emt 0:00:41]} 47. Rd3 {[%emt 0:02:33]} Rxd3 {[%emt 0:00:15]} 48. Kxd3 {[%emt 0:00:09]} Rb3+ {[%emt 0:00:09]} 49. Kxd2 {[%emt 0:00:28]} Rxh3 {[%emt 0:00:06]} 50. Rg1 {[%emt 0:02:19]} Rxa3 {[%emt 0:00:06]} 51. Kc2 {[%emt 0:00:26]} Kg6 {[%emt 0:00:22]} 52. Kb2 {[%emt 0:00:46]} Rf3 {[%emt 0:00:20]} 53. Ra1 {[%emt 0:00:25]} Rf7 {[%emt 0:00:42]} 54. Ra5 {[%emt 0:00:11]} h6 {[%emt 0:00:15]} 55. Kc3 {[%emt 0:00:12]} Rf4 {[%emt 0:01:29]} 56. Kd3 {[%emt 0:01:06]} Rxg4 {[%emt 0:00:16]} 57. Ke3 {[%emt 0:00:33]} h5 {[%emt 0:01:29]} 58. Kf3 {[%emt 0:00:28]} Rb4 {[%emt 0:00:41]} 59. Rxa7 {[%emt 0:00:15]} Kg5 {[%emt 0:00:18]} 60. Kg2 {[%emt 0:00:35]} Kh4 {[%emt 0:00:16]} 61. Rg7 {[%emt 0:00:51]} Rb2+ {[%emt 0:00:31]} 62. Kf1 {[%emt 0:00:34]} Kh3 {[%emt 0:00:13]} 63. Rh7 {[%emt 0:00:19]} h4 {[%emt 0:00:10]} 64. Rg7 {[%emt 0:00:08]} Kh2 {[%emt 0:00:26]} 65. Rh7 {[%emt 0:00:31]} h3 {[%emt 0:00:12]} 66. Rg7 {[%emt 0:00:25]} Rb1+ {[%emt 0:02:05]} 67. Kf2 {[%emt 0:00:20]} Kh1 {[%emt 0:00:12]} 68. Rh7 {[%emt 0:01:18]} h2 {[%emt 0:00:23]} 69. Rg7 {[%emt 0:00:26]} Rg1 {[%emt 0:00:34]} 70. Rh7 {[%emt 0:00:32]} Rg2+ {[%emt 0:01:00]} 71. Kf1 {[%emt 0:00:11]} Rg8 {[%emt 0:00:11]} 72. Rf7 {[%emt 0:00:38]} Rg2 {[%emt 0:01:50]} 73. Rf6 {[%emt 0:00:42]} Ra2 {[%emt 0:00:32]} 74. Rf7 {[%emt 0:00:13]} Ra1+ {[%emt 0:00:09]} 75. Kf2 {[%emt 0:00:13]} Ra2+ {[%emt 0:00:25]} 1/2-1/2

[Event "Irish International Open 2019"]
[Site "Dublin"]
[Date "2019.04.20"]
[Round "5.26"]
[White "Flynn, Jacob"]
[Black "Mancin, Michele"]
[Result "1-0"]
[ECO "D63"]
[WhiteElo "2011"]
[BlackElo "1706"]
[Annotator "NA"]
[PlyCount "51"]
[EventDate "2019.02.28"]
[EventType "swiss"]
[EventCountry "IRL"]
[SourceTitle "playchess.com"]
[Source "ChessBase"]
[SourceQuality "1"]
[TimeControl "5400+30"]

1. d4 {[%emt 0:00:00]} d5 {[%emt 0:00:00]} 2. c4 {[%emt 0:00:00]} c6 {[%emt 0:00:06]} 3. Nf3 {[%emt 0:00:02]} e6 {[%emt 0:00:20]} 4. Nc3 {[%emt 0:00:35]} Nf6 {[%emt 0:00:10]} 5. Bg5 {[%emt 0:00:17]} h6 {[%emt 0:00:47]} 6. Bh4 {[%emt 0:00:18]} Be7 {[%emt 0:01:07]} 7. e3 {[%emt 0:00:06]} O-O {[%emt 0:00:29]} 8. Bd3 {[%emt 0:04:08]} dxc4 {[%emt 0:01:59]} 9. Bxc4 {[%emt 0:00:17]} b5 {[%emt 0:00:09]} 10. Bd3 {[%emt 0:00:09]} a6 {[%emt 0:00:05]} 11. Rc1 {[%emt 0:03:07]} Bb7 {[%emt 0:00:58]} 12. O-O {[%emt 0:04:18]} Nbd7 {[%emt 0:00:43]} 13. Qe2 {[%emt 0:01:49]} c5 {[%emt 0:07:17]} 14. Rfd1 {[%emt 0:04:37]} cxd4 {[%emt 0:03:31]} 15. exd4 {[%emt 0:00:42]} Rc8 {[%emt 0:02:20]} 16. Ne5 {[%emt 0:07:19]} Nb6 {[%emt 0:15:48]} 17. Bg3 {[%emt 0:19:39]} b4 {[%emt 0:19:44]} 18. Ne4 {[%emt 0:10:50]} Rxc1 {[%emt 0:02:13]} 19. Rxc1 {[%emt 0:01:31]} Qxd4 {[%emt 0:06:03]} 20. Nf3 {[%emt 0:03:39]} Qd5 {[%emt 0:07:11]} 21. Nxf6+ {[%emt 0:03:27]} Bxf6 {[%emt 0:00:26]} 22. Bxa6 {[%emt 0:02:18]} Ba8 {[%emt 0:07:38]} 23. b3 {[%emt 0:02:50]} Bc3 {[%emt 0:03:16]} 24. Rd1 {[%emt 0:03:36]} Qa5 {[%emt 0:01:37]} 25. Bc7 {[%emt 0:01:03]} Qc5 {[%emt 0:00:53]} 26. Bd6 {[%emt 0:00:21]} 1-0

[Event "Irish International Open 2019"]
[Site "Dublin"]
[Date "2019.04.20"]
[Round "5.27"]
[White "Lundback, Anders"]
[Black "Schmitz, Manuela"]
[Result "1/2-1/2"]
[ECO "D46"]
[WhiteElo "1806"]
[BlackElo "1968"]
[Annotator "NA"]
[PlyCount "61"]
[EventDate "2019.02.28"]
[EventType "swiss"]
[EventCountry "IRL"]
[SourceTitle "playchess.com"]
[Source "ChessBase"]
[SourceQuality "1"]
[TimeControl "5400+30"]

1. d4 {[%emt 0:00:00]} d5 {[%emt 0:00:00]} 2. c4 {[%emt 0:00:00]} e6 {[%emt 0:00:00]} 3. Nf3 {[%emt 0:00:00]} c6 {[%emt 0:00:00]} 4. Nc3 {[%emt 0:00:19]} Nf6 {[%emt 0:00:00]} 5. e3 {[%emt 0:02:15]} Nbd7 {[%emt 0:00:47]} 6. Bd3 {[%emt 0:00:17]} Bd6 {[%emt 0:00:34]} 7. O-O {[%emt 0:00:20]} O-O {[%emt 0:01:18]} 8. Re1 {[%emt 0:05:16]} dxc4 {[%emt 0:02:07]} 9. Bxc4 {[%emt 0:00:09]} e5 {[%emt 0:03:39]} 10. e4 {[%emt 0:10:13]} Qe7 {[%emt 0:07:08]} 11. Bg5 {[%emt 0:03:04]} Nb6 {[%emt 0:03:16]} 12. Bb3 {[%emt 0:01:33]} Bg4 {[%emt 0:01:19]} 13. d5 {[%emt 0:03:24]} Rac8 {[%emt 0:03:28]} 14. h3 {[%emt 0:01:49]} Bxf3 {[%emt 0:04:45]} 15. Qxf3 {[%emt 0:02:16]} Nbd7 {[%emt 0:00:12]} 16. Rac1 {[%emt 0:06:32]} h6 {[%emt 0:00:40]} 17. Bh4 {[%emt 0:00:31]} g5 {[%emt 0:01:55]} 18. Bg3 {[%emt 0:00:09]} Nc5 {[%emt 0:03:25]} 19. dxc6 {[%emt 0:09:22]} bxc6 {[%emt 0:01:26]} 20. Bc4 {[%emt 0:02:32]} Ne6 {[%emt 0:04:14]} 21. Bxe6 {[%emt 0:04:11]} Qxe6 {[%emt 0:00:37]} 22. Nd1 {[%emt 0:02:42]} Bb4 {[%emt 0:10:30]} 23. Re2 {[%emt 0:02:31]} Rfd8 {[%emt 0:01:34]} 24. Ne3 {[%emt 0:05:12]} Bd2 {[%emt 0:00:57]} 25. Rf1 {[%emt 0:11:32]} Rd3 {[%emt 0:03:13]} 26. Qf5 {[%emt 0:04:22]} Bxe3 {[%emt 0:03:44]} 27. fxe3 {[%emt 0:01:32]} Qxf5 {[%emt 0:02:45]} 28. Rxf5 {[%emt 0:01:36]} Nxe4 {[%emt 0:02:50]} 29. Bxe5 {[%emt 0:01:28]} Rd1+ {[%emt 0:08:54]} 30. Rf1 {[%emt 0:06:00]} Rd5 {[%emt 0:04:00]} 31. Bh2 {[%emt 0:01:39]} 1/2-1/2

[Event "Irish International Open 2019"]
[Site "Dublin"]
[Date "2019.04.20"]
[Round "6.1"]
[White "Jovanic, Ognjen"]
[Black "Ruck, Robert"]
[Result "1/2-1/2"]
[ECO "A48"]
[WhiteElo "2515"]
[BlackElo "2522"]
[Annotator "ChessBase"]
[PlyCount "23"]
[EventDate "2019.02.28"]
[EventType "swiss"]
[EventCountry "IRL"]
[SourceTitle "playchess.com"]
[Source "ChessBase"]
[SourceQuality "1"]
[TimeControl "5400+30"]

1. d4 {[%emt 0:00:00]} Nf6 {[%emt 0:00:00]} 2. Nf3 {[%emt 0:00:30]} g6 {[%emt 0:00:30]} 3. Bf4 {[%emt 0:00:30]} Bg7 {[%emt 0:00:30]} 4. e3 {[%emt 0:00:30]} O-O {[%emt 0:00:30]} 5. c3 {[%emt 0:00:30]} d6 {[%emt 0:00:30]} 6. h3 {[%emt 0:00:30]} Nbd7 {[%emt 0:00:30]} 7. Be2 {[%emt 0:00:30]} b6 {[%emt 0:00:30]} 8. O-O {[%emt 0:00:30]} Bb7 {[%emt 0:00:30]} 9. Nbd2 {[%emt 0:00:30]} c5 {[%emt 0:00:41]} 10. Bh2 {[%emt 0:00:11]} Qc7 {[%emt 0:01:22]} 11. a4 {[%emt 0:00:13]} a6 {[%emt 0:01:00]} 12. Qb3 {[%emt 0:00:58]} 1/2-1/2

[Event "Irish International Open 2019"]
[Site "Dublin"]
[Date "2019.04.20"]
[Round "6.2"]
[White "Saric, Ante"]
[Black "Burg, Twan"]
[Result "1/2-1/2"]
[ECO "D37"]
[WhiteElo "2530"]
[BlackElo "2519"]
[Annotator "ChessBase"]
[PlyCount "41"]
[EventDate "2019.02.28"]
[EventType "swiss"]
[EventCountry "IRL"]
[SourceTitle "playchess.com"]
[Source "ChessBase"]
[SourceQuality "1"]
[TimeControl "5400+30"]

1. d4 {[%emt 0:00:00]} Nf6 {[%emt 0:00:00]} 2. c4 {[%emt 0:00:00]} e6 {[%emt 0:00:00]} 3. Nf3 {[%emt 0:00:00]} d5 {[%emt 0:00:00]} 4. Nc3 {[%emt 0:00:00]} Be7 {[%emt 0:00:00]} 5. Bf4 {[%emt 0:00:08]} O-O {[%emt 0:00:07]} 6. e3 {[%emt 0:00:08]} Nbd7 {[%emt 0:00:14]} 7. a3 {[%emt 0:00:28]} c5 {[%emt 0:00:12]} 8. cxd5 {[%emt 0:00:21]} Nxd5 {[%emt 0:00:07]} 9. Nxd5 {[%emt 0:00:08]} exd5 {[%emt 0:00:05]} 10. dxc5 {[%emt 0:00:23]} Nxc5 {[%emt 0:00:07]} 11. Be5 {[%emt 0:00:47]} Bf5 {[%emt 0:00:12]} 12. Be2 {[%emt 0:01:21]} Bf6 {[%emt 0:00:04]} 13. Bxf6 {[%emt 0:02:28]} Qxf6 {[%emt 0:00:06]} 14. Nd4 {[%emt 0:00:29]} Ne6 {[%emt 0:00:24]} 15. O-O {[%emt 0:11:55]} Nxd4 {[%emt 0:00:16]} 16. Qxd4 {[%emt 0:00:09]} Qxd4 {[%emt 0:00:05]} 17. exd4 {[%emt 0:00:06]} Rac8 {[%emt 0:07:36]} 18. Rfc1 {[%emt 0:00:50]} Rxc1+ {[%emt 0:00:35]} 19. Rxc1 {[%emt 0:00:04]} Rc8 {[%emt 0:00:05]} 20. Rxc8+ {[%emt 0:01:28]} Bxc8 {[%emt 0:00:02]} 21. Bf3 {[%emt 0:00:59]} 1/2-1/2

[Event "Irish International Open 2019"]
[Site "Dublin"]
[Date "2019.04.20"]
[Round "6.4"]
[White "Pulkkinen, Kari"]
[Black "Larino Nieto, David"]
[Result "0-1"]
[ECO "C61"]
[WhiteElo "2265"]
[BlackElo "2434"]
[Annotator "ChessBase"]
[PlyCount "110"]
[EventDate "2019.02.28"]
[EventType "swiss"]
[EventCountry "IRL"]
[SourceTitle "playchess.com"]
[Source "ChessBase"]
[SourceQuality "1"]
[TimeControl "5400+30"]

1. e4 {[%emt 0:00:00]} e5 {[%emt 0:31:21]} 2. Nf3 {[%emt 0:00:00]} Nc6 {[%emt 0:00:03]} 3. Bb5 {[%emt 0:00:05]} Nd4 {[%emt 0:00:04]} 4. Nxd4 {[%emt 0:00:26]} exd4 {[%emt 0:00:03]} 5. O-O {[%emt 0:00:35]} c6 {[%emt 0:00:02]} 6. Ba4 {[%emt 0:00:34]} Nf6 {[%emt 0:01:07]} 7. e5 {[%emt 0:02:27]} Ne4 {[%emt 0:02:52]} 8. c3 {[%emt 0:03:00]} d3 {[%emt 0:00:36]} 9. Qf3 {[%emt 0:01:19]} Nc5 {[%emt 0:00:43]} 10. Bd1 {[%emt 0:00:22]} d6 {[%emt 0:01:17]} 11. b4 {[%emt 0:06:02]} Ne6 {[%emt 0:00:10]} 12. Qxd3 {[%emt 0:03:03]} dxe5 {[%emt 0:00:04]} 13. Qe4 {[%emt 0:05:31]} a5 {[%emt 0:01:38]} 14. Qxe5 {[%emt 0:05:27]} axb4 {[%emt 0:00:09]} 15. cxb4 {[%emt 0:01:02]} Bxb4 {[%emt 0:00:47]} 16. Bb2 {[%emt 0:01:40]} Be7 {[%emt 0:01:02]} 17. Qe4 {[%emt 0:07:01]} Bf6 {[%emt 0:00:23]} 18. Bxf6 {[%emt 0:00:22]} Qxf6 {[%emt 0:00:02]} 19. Nc3 {[%emt 0:00:12]} O-O {[%emt 0:00:23]} 20. Bc2 {[%emt 0:00:50]} g6 {[%emt 0:00:08]} 21. Qe3 {[%emt 0:02:06]} Nd4 {[%emt 0:06:22]} 22. Bb3 {[%emt 0:01:55]} Bf5 {[%emt 0:02:43]} 23. Rae1 {[%emt 0:04:05]} Kg7 {[%emt 0:00:09]} 24. h3 {[%emt 0:02:29]} Rad8 {[%emt 0:02:08]} 25. f4 {[%emt 0:05:42]} h5 {[%emt 0:03:25]} 26. Rf2 {[%emt 0:03:33]} h4 {[%emt 0:00:51]} 27. Qe7 {[%emt 0:01:43]} Rd7 {[%emt 0:00:24]} 28. Qxf6+ {[%emt 0:02:49]} Kxf6 {[%emt 0:00:05]} 29. Na4 {[%emt 0:02:27]} Rd6 {[%emt 0:03:13]} 30. Re3 {[%emt 0:01:55]} Rfd8 {[%emt 0:01:36]} 31. Nc5 {[%emt 0:01:32]} Rb8 {[%emt 0:00:02]} 32. d3 {[%emt 0:01:46]} Rdd8 {[%emt 0:03:25]} 33. Ne4+ {[%emt 0:04:32]} Kg7 {[%emt 0:00:01]} 34. Rd2 {[%emt 0:00:43]} Bxe4 {[%emt 0:00:41]} 35. Rxe4 {[%emt 0:00:15]} Rd7 {[%emt 0:00:33]} 36. Kf2 {[%emt 0:01:58]} Rbd8 {[%emt 0:00:38]} 37. Bd1 {[%emt 0:02:08]} Kf6 {[%emt 0:00:37]} 38. Bg4 {[%emt 0:02:15]} Rd5 {[%emt 0:00:08]} 39. Ke3 {[%emt 0:02:06]} b5 {[%emt 0:01:01]} 40. Kf2 {[%emt 0:00:36]} b4 {[%emt 0:00:27]} 41. Re3 {[%emt 0:01:42]} Ra5 {[%emt 0:03:46]} 42. Re4 {[%emt 0:04:09]} Rad5 {[%emt 0:02:19]} 43. Re3 {[%emt 0:01:18]} Rc5 {[%emt 0:00:13]} 44. Re4 {[%emt 0:01:44]} Rc3 {[%emt 0:00:26]} 45. Re3 {[%emt 0:01:25]} c5 {[%emt 0:00:21]} 46. Re4 {[%emt 0:06:05]} Ra8 {[%emt 0:00:52]} 47. Bf3 {[%emt 0:00:58]} Raa3 {[%emt 0:00:29]} 48. Re5 {[%emt 0:00:32]} Ne6 {[%emt 0:03:37]} 49. Ke3 {[%emt 0:01:25]} g5 {[%emt 0:01:53]} 50. Bg4 {[%emt 0:02:45]} Nxf4 {[%emt 0:00:10]} 51. Ke4 {[%emt 0:00:39]} c4 {[%emt 0:01:14]} 52. Rf5+ {[%emt 0:00:22]} Kg6 {[%emt 0:00:01]} 53. dxc4 {[%emt 0:00:19]} Re3+ {[%emt 0:01:08]} 54. Kd4 {[%emt 0:00:08]} Ne6+ {[%emt 0:00:01]} 55. Kd5 {[%emt 0:00:12]} Ra5+ {[%emt 0:00:05]} 0-1

[Event "Irish International Open 2019"]
[Site "Dublin"]
[Date "2019.04.20"]
[Round "6.5"]
[White "Menzies, Colin"]
[Black "Thorfinnsson, Bjorn"]
[Result "0-1"]
[ECO "D11"]
[WhiteElo "2183"]
[BlackElo "2399"]
[Annotator "NA"]
[PlyCount "34"]
[EventDate "2019.02.28"]
[EventType "swiss"]
[EventCountry "IRL"]
[SourceTitle "playchess.com"]
[Source "ChessBase"]
[SourceQuality "1"]
[TimeControl "5400+30"]

1. Nf3 {[%emt 0:00:00]} d5 {[%emt 0:02:30]} 2. c4 {[%emt 0:00:00]} c6 {[%emt 0:00:05]} 3. g3 {[%emt 0:00:12]} Nf6 {[%emt 0:00:13]} 4. Bg2 {[%emt 0:00:11]} Bf5 {[%emt 0:00:10]} 5. d4 {[%emt 0:01:10]} e6 {[%emt 0:00:17]} 6. Nc3 {[%emt 0:03:13]} h6 {[%emt 0:00:29]} 7. Qb3 {[%emt 0:02:17]} Qb6 {[%emt 0:10:47]} 8. c5 {[%emt 0:00:22]} Qxb3 {[%emt 0:00:07]} 9. axb3 {[%emt 0:00:05]} Na6 {[%emt 0:00:39]} 10. Ne5 {[%emt 0:03:34]} Nc7 {[%emt 0:05:29]} 11. f3 {[%emt 0:13:54]} Nd7 {[%emt 0:03:07]} 12. g4 {[%emt 0:10:34]} Nxe5 {[%emt 0:08:54]} 13. gxf5 {[%emt 0:00:08]} Nd7 {[%emt 0:00:08]} 14. fxe6 {[%emt 0:00:56]} Nxe6 {[%emt 0:00:10]} 15. Ra4 {[%emt 0:01:15]} b5 {[%emt 0:02:23]} 16. cxb6 {[%emt 0:03:08]} Nxb6 {[%emt 0:00:55]} 17. Ra6 {[%emt 0:00:45]} Nxd4 {[%emt 0:00:40]} 0-1

[Event "Irish International Open 2019"]
[Site "Dublin"]
[Date "2019.04.20"]
[Round "6.7"]
[White "Jackson, James P"]
[Black "De Verdier, Michael"]
[Result "1/2-1/2"]
[ECO "C11"]
[WhiteElo "2388"]
[BlackElo "2306"]
[Annotator "NA"]
[PlyCount "30"]
[EventDate "2019.02.28"]
[EventType "swiss"]
[EventCountry "IRL"]
[SourceTitle "playchess.com"]
[Source "ChessBase"]
[SourceQuality "1"]
[TimeControl "5400+30"]

1. e4 {[%emt 0:00:00]} e6 {[%emt 0:00:00]} 2. d4 {[%emt 0:00:00]} d5 {[%emt 0:00:00]} 3. Nc3 {[%emt 0:00:00]} Nf6 {[%emt 0:00:00]} 4. e5 {[%emt 0:00:00]} Nfd7 {[%emt 0:00:00]} 5. f4 {[%emt 0:00:00]} c5 {[%emt 0:00:09]} 6. Nf3 {[%emt 0:00:00]} Qb6 {[%emt 0:00:49]} 7. Be3 {[%emt 0:20:02]} a6 {[%emt 0:00:46]} 8. Na4 {[%emt 0:24:55]} Qa5+ {[%emt 0:00:06]} 9. c3 {[%emt 0:00:04]} cxd4 {[%emt 0:00:06]} 10. b4 {[%emt 0:00:04]} Qc7 {[%emt 0:00:05]} 11. Bxd4 {[%emt 0:00:22]} Nc6 {[%emt 0:01:36]} 12. Be3 {[%emt 0:14:34]} Be7 {[%emt 0:03:37]} 13. Bd3 {[%emt 0:02:53]} O-O {[%emt 0:05:04]} 14. O-O {[%emt 0:02:25]} b5 {[%emt 0:12:58]} 15. Nb2 {[%emt 0:00:05]} Nb6 {[%emt 0:01:03]} 1/2-1/2

[Event "Irish International Open 2019"]
[Site "Dublin"]
[Date "2019.04.20"]
[Round "6.9"]
[White "Melaugh, Shane"]
[Black "Li, Henry"]
[Result "0-1"]
[ECO "D01"]
[WhiteElo "2105"]
[BlackElo "2308"]
[Annotator "ChessBase"]
[PlyCount "52"]
[EventDate "2019.02.28"]
[EventType "swiss"]
[EventCountry "IRL"]
[SourceTitle "playchess.com"]
[Source "ChessBase"]
[SourceQuality "1"]
[TimeControl "5400+30"]

1. d4 {[%emt 0:00:35]} Nf6 {[%emt 0:00:00]} 2. Nc3 {[%emt 0:03:59]} d5 {[%emt 1:31:00]} 3. Bf4 {[%emt 0:00:06]} g6 {[%emt 0:00:00]} 4. Qd2 {[%emt 0:00:57]} Bg7 {[%emt 0:00:00]} 5. Bh6 {[%emt 0:00:25]} O-O {[%emt 0:00:00]} 6. Bxg7 {[%emt 0:00:05]} Kxg7 {[%emt 0:00:00]} 7. f3 {[%emt 0:00:15]} c6 {[%emt 0:00:00]} 8. h4 {[%emt 0:03:49]} Nbd7 {[%emt 0:00:00]} 9. g4 {[%emt 0:03:19]} e5 {[%emt 0:00:00]} 10. dxe5 {[%emt 0:01:24]} Nxe5 {[%emt 0:00:00]} 11. Qd4 {[%emt 0:00:34]} Qc7 {[%emt 0:00:00]} 12. O-O-O {[%emt 0:01:21]} Re8 {[%emt 0:00:00]} 13. e4 {[%emt 0:03:56]} Be6 {[%emt 0:00:00]} 14. Kb1 {[%emt 0:40:51]} Rad8 {[%emt 0:00:00]} 15. g5 {[%emt 0:06:34]} Nh5 {[%emt 0:00:00]} 16. exd5 {[%emt 0:05:53]} Bxd5 {[%emt 0:00:00]} 17. Qf2 {[%emt 0:00:07]} Qa5 {[%emt 0:00:00]} 18. Nxd5 {[%emt 0:01:41]} Rxd5 {[%emt 0:00:00]} 19. Rxd5 {[%emt 0:00:58]} Qxd5 {[%emt 0:00:00]} 20. Be2 {[%emt 0:01:25]} Nf4 {[%emt 0:00:00]} 21. Rh2 {[%emt 0:00:35]} Nc4 {[%emt 0:00:00]} 22. a3 {[%emt 0:01:04]} Ne3 {[%emt 0:00:00]} 23. Qe1 {[%emt 0:02:23]} Qd4 {[%emt 0:00:00]} 24. Nh3 {[%emt 0:03:07]} Nxc2 {[%emt 0:00:00]} 25. Kxc2 {[%emt 0:02:05]} Rxe2+ {[%emt 0:00:00]} 26. Rxe2 {[%emt 0:00:13]} Qd3+ {[%emt 0:00:00]} 0-1

[Event "Irish International Open 2019"]
[Site "Dublin"]
[Date "2019.04.20"]
[Round "6.10"]
[White "Brady, Stephen"]
[Black "Murray, David"]
[Result "1-0"]
[ECO "A01"]
[WhiteElo "2301"]
[BlackElo "2152"]
[Annotator "ChessBase"]
[PlyCount "47"]
[EventDate "2019.02.28"]
[EventType "swiss"]
[EventCountry "IRL"]
[SourceTitle "playchess.com"]
[Source "ChessBase"]
[SourceQuality "1"]
[TimeControl "5400+30"]

1. b3 {[%emt 0:00:06]} e5 {[%emt 0:00:05]} 2. Bb2 {[%emt 0:00:06]} d6 {[%emt 0:00:57]} 3. e3 {[%emt 0:00:07]} Nf6 {[%emt 0:00:14]} 4. d4 {[%emt 0:00:16]} Nbd7 {[%emt 0:01:17]} 5. Nf3 {[%emt 0:02:37]} exd4 {[%emt 0:02:35]} 6. exd4 {[%emt 0:01:59]} d5 {[%emt 0:02:05]} 7. Bd3 {[%emt 0:00:23]} Bb4+ {[%emt 1:26:17]} 8. c3 {[%emt 0:00:47]} Bd6 {[%emt 0:00:00]} 9. O-O {[%emt 0:00:32]} O-O {[%emt 0:00:00]} 10. c4 {[%emt 0:01:16]} c5 {[%emt 0:00:00]} 11. Nc3 {[%emt 0:01:04]} dxc4 {[%emt 0:00:00]} 12. Bxc4 {[%emt 0:02:41]} Nb6 {[%emt 0:00:00]} 13. Be2 {[%emt 0:03:14]} Nbd5 {[%emt 0:00:00]} 14. Nxd5 {[%emt 0:16:01]} Nxd5 {[%emt 0:00:00]} 15. dxc5 {[%emt 0:00:07]} Bxc5 {[%emt 0:00:00]} 16. Qc2 {[%emt 0:00:39]} Be7 {[%emt 0:00:00]} 17. Rad1 {[%emt 0:09:40]} Qc7 {[%emt 0:00:00]} 18. Bc4 {[%emt 0:01:14]} Rd8 {[%emt 0:00:00]} 19. Rfe1 {[%emt 0:08:02]} Be6 {[%emt 0:00:00]} 20. Nd4 {[%emt 0:02:24]} Rac8 {[%emt 0:00:00]} 21. Rxe6 {[%emt 0:08:23]} fxe6 {[%emt 0:00:00]} 22. Nxe6 {[%emt 0:00:21]} Qd7 {[%emt 0:00:00]} 23. Nxd8 {[%emt 0:01:02]} b5 {[%emt 0:00:00]} 24. Rxd5 {[%emt 0:01:02]} 1-0

[Event "Irish International Open 2019"]
[Site "Dublin"]
[Date "2019.04.20"]
[Round "6.12"]
[White "McMorrow, John"]
[Black "Schut, Han"]
[Result "1/2-1/2"]
[ECO "B90"]
[WhiteElo "2058"]
[BlackElo "2173"]
[Annotator "NA"]
[PlyCount "26"]
[EventDate "2019.02.28"]
[EventType "swiss"]
[EventCountry "IRL"]
[SourceTitle "playchess.com"]
[Source "ChessBase"]
[SourceQuality "1"]
[TimeControl "5400+30"]

1. e4 {[%emt 0:11:11]} c5 {[%emt 0:00:00]} 2. Nf3 {[%emt 0:00:12]} d6 {[%emt 0:00:00]} 3. d4 {[%emt 0:00:03]} cxd4 {[%emt 0:00:00]} 4. Nxd4 {[%emt 0:00:04]} Nf6 {[%emt 0:00:00]} 5. Nc3 {[%emt 0:00:03]} a6 {[%emt 0:00:00]} 6. Be3 {[%emt 0:00:05]} e5 {[%emt 0:00:03]} 7. Nb3 {[%emt 0:00:04]} Be6 {[%emt 0:00:05]} 8. f3 {[%emt 0:00:13]} Nbd7 {[%emt 0:00:10]} 9. Qd2 {[%emt 0:00:30]} b5 {[%emt 0:00:13]} 10. g4 {[%emt 0:00:58]} b4 {[%emt 0:00:48]} 11. Nd5 {[%emt 0:14:08]} Bxd5 {[%emt 0:07:39]} 12. exd5 {[%emt 0:06:51]} Nb6 {[%emt 0:00:10]} 13. O-O-O {[%emt 0:01:03]} Nfxd5 {[%emt 0:06:48]} 1/2-1/2